Cogmind - Beta 15 @@@ ROGUE MODE // 2025.09.07 @ 06:49:28 Player: Godsword Result: Self-destructed Performance ------------- Evolutions (1) 500 Regions Visited (3) 600 Robots Destroyed (17) 85 Value Destroyed (303) 303 Prototype IDs (1) 20 Alien Tech Used (0) 0 Bonus (0) 0 TOTAL SCORE: 1508 Bonus ------- None Cogmind --------- Core Integrity 94/400 Matter 300/300 Energy 100/100 System Corruption 0% Temperature Cool (0) Movement Core (1400) Ox27 Location -9/Materials Parts ------- > --- POWER (1) -------- (None) > --- PROPULSION (3) --- (None) > --- UTILITY (3) ------ Huge Storage Unit Improved Terrain Scanner Utility Shielding > --- WEAPON (2) ------- (None) > --- INVENTORY (25) --- Light Ion Engine Light Ion Engine Heavy Ion Engine Flight Unit Heat Sink Small Storage Unit Medium Storage Unit Large Battery (200) Medium Matter Pod (10) Improved Terrain Scanner Peak State ------------ > --- POWER ------------ Heavy Ion Engine > --- PROPULSION ------- Compact Wheel Compact Wheel Compact Wheel > --- UTILITY ---------- Huge Storage Unit Improved Terrain Scanner Utility Shielding > --- WEAPON ----------- Assault Rifle Light Assault Rifle > --- INVENTORY -------- Light Ion Engine Light Ion Engine Heat Sink Small Storage Unit Large Battery Medium Matter Pod Improved Terrain Scanner Medium Laser [Rating: 14] Favorites ----------- Power Light Ion Engine Engine Light Ion Engine Propulsion Compact Wheel Wheel Compact Wheel Utility Improved Terrain Scanner Device Improved Terrain Scanner Storage Huge Storage Unit Protection Utility Shielding Weapon Light Assault Rifle Energy Gun Medium Laser Ballistic Gun Light Assault Rifle Build | -11 -10 -10 -9 ------- Run | Yrd Mat Min Mat Slots Evolved 2 | . . . 2 Power . | . . . . Propulsion 1 | . . . 1 Utility 1 | . . . 1 Weapon . | . . . . Parts Attached 14 | 8 . 1 5 Power 3 | 1 . . 2 Engine 3 | 1 . . 2 Core . | . . . . Reactor . | . . . . Propulsion 4 | 3 . . 1 Treads . | . . . . Leg . | . . . . Wheel 4 | 3 . . 1 Hover . | . . . . Flight . | . . . . Utility 4 | 2 . 1 1 Device 1 | 1 . . . Storage 2 | 1 . 1 . Processor . | . . . . Hackware . | . . . . Protection 1 | . . . 1 Artifact . | . . . . Weapon 3 | 2 . . 1 Energy Gun 1 | . . . 1 Energy Cannon . | . . . . Ballistic Gun 2 | 2 . . . Ballistic Cannon . | . . . . Launcher . | . . . . Special Weapon . | . . . . Impact Weapon . | . . . . Slashing Weapon . | . . . . Piercing Weapon . | . . . . Special Melee Weapon . | . . . . Unidentified Prototypes 1 | . . . 1 Parts Lost 7 | . . . 7 Power 1 | . . . 1 Propulsion 3 | . . . 3 Utility . | . . . . Weapon 3 | . . . 3 Highest Loss Streak 7 | . . . 7 To Critical Strikes . | . . . . Average Backups 5 | 1 4 6 8 Power 1 | . 1 1 2 Propulsion . | . 1 1 . Utility 3 | . 1 3 5 Weapon . | . 1 1 . Tool/Special . | . . . . Unused Backups 8 | . . 1 7 Power 2 | . . . 2 Propulsion . | . . . . Utility 5 | . . . 5 Weapon 1 | . . 1 . Tool/Special . | . . . . Average Slot Usage (%) 98 | . 100 100 97 Engine 12 | . 14 14 11 Wheel 30 | . 28 28 32 Device 12 | . 14 14 11 Storage 12 | . 14 14 11 Protection 6 | . . . 10 Ballistic Gun 22 | . 28 28 20 Peak Build Rating 14 | 9 9 10 14 Average Rating 10 | 7 9 9 12 On Entrance 7 | . 9 9 10 Naked Turns . | . . . . Heaviest Build 93 | 12 12 87 93 Greatest Support 48 | 32 32 32 48 Greatest Overweight (x) 5 | 3 . 2 5 Average Overweight (x) . | . . 1 1 Largest Inventory Capacity 25 | 8 8 25 25 Average Capacity 18 | 7 8 23 25 Most Carried 10 | 4 4 8 10 Average Carried 6 | 1 4 7 8 Final Capacity 25 | 8 8 25 25 Final Carried 10 | 4 4 8 10 Class Distribution -------------------- 100% | Mutant Dominant Class ---------------- Mutant | -10/Materials Mutant | -10/Mines Mutant | -9/Materials Resources | -11 -10 -10 -9 ----------- Run | Yrd Mat Min Mat Matter Collected 500 | 368 . 38 94 Remotely . | . . . . Salvage Created 559 | 181 . 98 280 Parts 36 | 13 . 2 21 Haulers Intercepted 1 | . . . 1 Recyclers Shooed 2 | 1 . 1 . Parts Field Recycled . | . . . . Retrieved Matter . | . . . . Parts Self-Destructed . | . . . . Prevented . | . . . . Kills | -11 -10 -10 -9 ------- Run | Yrd Mat Min Mat Combat Hostiles Destroyed 9 | . . 2 7 Guns 8 | . . 2 6 AOE 1 | . . . 1 Classes Destroyed 7 | 3 . 1 3 Worker 3 | 2 . . 1 Tunneler 3 | 3 . . . Hauler 1 | . . . 1 Recycler 1 | 1 . . . Swarmer 3 | . . . 3 Grunt 5 | . . 2 3 Sentry 1 | . . . 1 Best Kill Streak 5 | 4 . 2 5 Combat Bots Only 5 | . . 2 5 Max Kills in Single Turn 1 | 1 . 1 1 Gunslinging . | . . . . Exploded 1 | . . . 1 Melee . | . . . . Uniques/NPCs Destroyed . | . . . . Combat | -11 -10 -10 -9 -------- Run | Yrd Mat Min Mat Hostile Shots Fired 89 | . 1 8 80 Missed 27 | . 1 2 24 Hits 62 | . . 6 56 Projectile 62 | . . 6 56 Critical Strikes 1 | . . . 1 Damage Taken 872 | . . 80 792 Core 345 | . . 39 306 Absorbed by Shields . | . . . . Redirected to Shielding 19 | . . . 19 Core Remaining (%) 92 | 100 . 84 . Volleys Fired 54 | 22 . 7 25 Largest 2 | 2 . 2 2 Hottest 70 | 40 . 40 70 Shots Fired 106 | 44 . 14 48 Gun 106 | 44 . 14 48 Cannon . | . . . . Launcher . | . . . . Special . | . . . . Kinetic 97 | 44 . 14 39 Thermal 9 | . . . 9 Explosive . | . . . . Electromagnetic . | . . . . Robot Hit Streak 16 | 3 . 12 16 Robot Miss Streak 4 | 4 . 1 3 Penetration Max . | . . . . Secondary Targets 3 | . . . 3 Max Gunslinging Chain 1 | . . . 1 Shots Hit Robots 59 | 19 . 13 27 Core Hits 28 | 10 . 5 13 Critical Kills 1 | . . . 1 Critical Parts Destroyed . | . . . . Critical Strikes 2 | . . . 2 Burn 1 | . . . 1 Destroy 1 | . . . 1 Melee Attacks . | . . . . Impact . | . . . . Slashing . | . . . . Piercing . | . . . . Sneak Attacks . | . . . . Combat Hostiles . | . . . . Follow-up Attacks . | . . . . Damage Inflicted 673 | 189 . 138 346 Guns 673 | 189 . 138 346 Cannons . | . . . . Explosions . | . . . . Melee . | . . . . Ramming . | . . . . Kinetic 586 | 189 . 138 259 Thermal 87 | . . . 87 Explosive . | . . . . Electromagnetic . | . . . . Impact . | . . . . Slashing . | . . . . Piercing . | . . . . Highest Corruption . | . . . . Average Corruption . | . . . . Corruption Purged . | . . . . Corruption Blocked . | . . . . Overload Shots . | . . . . Overflow Damage . | . . . . Projectiles . | . . . . Explosions . | . . . . Melee . | . . . . Knockbacks . | . . . . Impact . | . . . . Kinetic . | . . . . Secondary . | . . . . Self-Inflicted Damage . | . . . . Shots . | . . . . Rammed . | . . . . Targets Rammed . | . . . . Kicked . | . . . . Crushed . | . . . . Highest Temperature 142 | . . 24 142 Average Temperature 51 | . . 10 59 Received Heat Transfer 312 | . . 48 264 Siege Activations . | . . . . Martial Activations . | . . . . Shielding Activations . | . . . . Robots Disrupted . | . . . . Combat Hostiles . | . . . . Robots Corrupted . | . . . . Combat Hostiles . | . . . . Parts Fried . | . . . . Impact Corruptions . | . . . . Robots Melted . | . . . . Combat Hostiles . | . . . . Parts Melted . | . . . . Heat Transferred 333 | . . . 333 Parts Sabotaged . | . . . . Parts Stolen . | . . . . Parts Stripped . | . . . . Power Chain Reactions . | . . . . Alert | -11 -10 -10 -9 ------- Run | Yrd Mat Min Mat Maximum Alert Level . | . . . . Low Security (%) 100 | 100 100 100 100 Level 1 . | . . . . Level 2 . | . . . . Level 3 . | . . . . Level 4 . | . . . . Level 5 . | . . . . High Security . | . . . . Max Security . | . . . . Peak Influence 90 | 10 . 50 90 Initial 15 | . . . 15 Average 10 | 2 . 12 18 Influence Increases 272 | 30 . 50 192 Destroy 0b10 Robot/C 180 | . . 40 140 Destroy 0b10 Robot/NC 40 | 30 . . 10 Destroy Leader 52 | . . 10 42 Influence Decreases 222 | 30 . 10 182 Entered New Map 25 | . . . 25 Time Decay 135 | 30 . 10 95 Lost Part 62 | . . . 62 Squads Dispatched 1 | . . . 1 Investigation . | . . . . Extermination . | . . . . Reinforcement 1 | . . . 1 Assault . | . . . . Garrison . | . . . . Intercept . | . . . . Searches Triggered . | . . . . Construction Impeded . | . . . . Haulers Reinforced . | . . . . Active Scanning Responses . | . . . . Cargo Convoy Interrupts . | . . . . Stealth | -11 -10 -10 -9 --------- Run | Yrd Mat Min Mat Distress Signals . | . . . . Communications Jammed . | . . . . Distress Signals . | . . . . Times Spotted 21 | . 2 2 17 Peak Tracking Total 8 | . 2 2 8 Tactical Retreats . | . . . . Traps | -11 -10 -10 -9 ------- Run | Yrd Mat Min Mat Traps Triggered . | . . . . Indirectly . | . . . . Trap Hack Attempts . | . . . . Triggered . | . . . . Disarmed . | . . . . Reprogrammed . | . . . . Reused . | . . . . Traps Extracted . | . . . . Installed . | . . . . Triggered . | . . . . Machines | -11 -10 -10 -9 ---------- Run | Yrd Mat Min Mat Machines Disabled . | . . . . Max in Single Turn . | . . . . Machines Repaired . | . . . . Machines Dismantled . | . . . . Machines Sabotaged . | . . . . Overloaded Fab Kills . | . . . . Hacking | -11 -10 -10 -9 --------- Run | Yrd Mat Min Mat Machines Accessed 2 | . 1 . 1 Terminals 1 | . 1 . . Fabricators . | . . . . Repair Stations . | . . . . Recycling Units 1 | . . . 1 Scanalyzers . | . . . . Garrison Access . | . . . . Total Hacks 6 | . 2 . 4 Successful 2 | . 1 . 1 Failed 4 | . 1 . 3 Catastrophic . | . . . . Database Lockouts . | . . . . Manual . | . . . . Terminals 2 | . 2 . . Fabricators . | . . . . Repair Stations . | . . . . Recycling Units 4 | . . . 4 Scanalyzers . | . . . . Garrison Access . | . . . . Terminal Hacks 1 | . 1 . . Zone Layout 1 | . 1 . . Fabricator Hacks . | . . . . Repair Station Hacks . | . . . . Recycling Unit Hacks 1 | . . . 1 Retrieve Components 1 | . . . 1 Scanalyzer . | . . . . Garrison Access Hacks . | . . . . Unauthorized Hacks . | . . . . Terminals . | . . . . Fabricators . | . . . . Repair Stations . | . . . . Recycling Units . | . . . . Scanalyzers . | . . . . Garrison Access . | . . . . Data Cores Recovered . | . . . . Used . | . . . . Hacking Detections 1 | . . . 1 Full Trace Events 1 | . . . 1 Feedback Events . | . . . . Feedback Blocked . | . . . . Robot Schematics Acquired . | . . . . Robots Built . | . . . . Authchips . | . . . . Time . | . . . . Total Robot Build Rating . | . . . . Part Schematics Acquired . | . . . . Parts Built . | . . . . Authchips . | . . . . Time . | . . . . Total Part Build Rating . | . . . . Parts Repaired . | . . . . Time . | . . . . Parts Recycled . | . . . . Recycled Matter . | . . . . Retrieved Matter . | . . . . Retrieved Components 1 | . . . 1 Parts Scanalyzed . | . . . . Part Schematics Acquired . | . . . . Parts Damaged . | . . . . Bothacking | -11 -10 -10 -9 ------------ Run | Yrd Mat Min Mat Used RIF Installer . | . . . . Robots Hacked . | . . . . Non-combat . | . . . . Combat . | . . . . Robot Hacks Applied . | . . . . Relay Couplers Released . | . . . . Fabnet Peak Effective % . | . . . . Robots Rewired . | . . . . Allies Hacked . | . . . . Hacks Repelled . | . . . . Allies | -11 -10 -10 -9 -------- Run | Yrd Mat Min Mat Total Allies . | . . . . Largest Group . | . . . . Highest-Rated Group . | . . . . Highest-Rated Ally . | . . . . Total Orders . | . . . . Ally Attacks . | . . . . Total Damage . | . . . . Kills . | . . . . Allies Corrupted . | . . . . Allies Melted . | . . . . Intel | -11 -10 -10 -9 ------- Run | Yrd Mat Min Mat Active Infowar (turns) 505 | 90 79 60 276 Terrain 505 | 90 79 60 276 Robot Analysis Total . | . . . . Derelict Logs Recovered . | . . . . Drone Launches . | . . . . Drone Recoveries . | . . . . Exploration | -11 -10 -10 -9 ------------- Run | Yrd Mat Min Mat Turns Passed 557 | 142 79 60 276 Spaces Moved 311 | 61 80 23 147 Core 15 | 15 . . . Treads . | . . . . Legs . | . . . . Wheels 296 | 46 80 23 147 Hover . | . . . . Flight . | . . . . Fastest Speed 50 | 50 100 100 115 Average Speed 111 | 105 100 123 117 Slowest Speed 200 | 200 100 130 175 Overloaded Moves . | . . . . Propulsion Burnouts . | . . . . Robots Hopped . | . . . . Potential Cave-ins . | . . . . Cave-ins Triggered . | . . . . Exploration Rate (%) 12 | 4 20 6 20 Regions Visited 3 Branch Regions 1 Pre-discovered Areas . | . . . . Known Exits Taken . | . . . . Unknown Exits Taken 3 | 1 1 1 . Scrap Searched . | . . . . Spaces Dug . | . . . . Terrain Destroyed . | . . . . Melee . | . . . . Projectile . | . . . . AOE . | . . . . Terrain Rammed . | . . . . Walls Destroyed . | . . . . Machines Disabled . | . . . . Actions | -11 -10 -10 -9 --------- Run | Yrd Mat Min Mat Total 422 | 95 79 42 206 Wait 31 | . . 7 24 Move 308 | 60 79 22 147 Hop . | . . . . Pick Up 12 | 4 . 4 4 Fast Attach 9 | 8 . . 1 Attach 3 | . . . 3 Detach . | . . . . Swap 2 | . . 1 1 Drop 3 | 1 . 1 1 Fire 54 | 22 . 7 25 Melee . | . . . . Ram . | . . . . Kick . | . . . . Crush . | . . . . Escape Stasis . | . . . . Rewire . | . . . . Trap . | . . . . Miscellaneous . | . . . . Route ------- -11/Scrapyard -10/Materials -10/Mines -9/Materials History --------- Turn | Location | Event 14 | -11/Scrapyard | Discovered new exit (range 16) 143 | -11/Scrapyard | Entered Materials 217 | -10/Materials | Discovered new exit (range 6) 222 | -10/Materials | Entered Mines 243 | -10/Mines | Discovered new exit (range 11) 282 | -10/Mines | Entered Materials 282 | -9/Materials | Evolved 2 slots: Propulsion x1, Utility x1 304 | -9/Materials | Build established: Mutant 545 | -9/Materials | Core integrity fell below 50% 558 | -9/Materials | Self-destructed Last Messages --------------- Trooper. 00533_ Acquired 17 matter. 00540_ S-10 Pest suffers critical hit (Burn). 00540_ S-10 Pest destroyed. 00540_ Switching to secondary target: G-47 Trooper. 00541_ Acquired 12 matter. 00542_ Lgt. Assault Rifle destroyed. 00544_ Fusion Modulator explodes. 00544_ G-47 Trooper destroyed. 00544_ Med. Laser destroyed. 00544_ Com. Wheel destroyed. 00548_ Acquired Flight Unit. 00552_ Hvy. Ion Engine destroyed. 00553_ G-34 Mercenary destroyed. 00556_ U-05 Engineer lays Concrete. 00557_ U-05 Engineer builds a Wall. 00557_ Com. Wheel destroyed. [Achievement: Back For More] [Achievement: Achiever] Map ----- +----------------------------------------------------+ | ?????????????????????????????????????????????????? | | ?????????????????????????????????????????????????? | | ?????????????????????????????????????????????????? | | ?????????????????????????????????????????????????? | | ?????????????????????????????????????????????????? | | ?????????????????????????????????????????????????? | | ?????????????????????????????????????????????????? | | ?????????????????????????????????????????????????? | | ?????????????????????????????????????????????????? | | ?????????????????????????????????????????????????? | | ??????????????????????? ?????????????????????? | | ??????????????????????? Y ?????????????????????? | | ??????????????????????? ????????????????????? | | ??????????????????????? ?????????????????????? | | ?????????????????#?????# #?????????????????????? | | ???????????????????????# #?????????????????????? | | ???????????????????????# #?????????????????????? | | ?????????????????????### #?????#??##???????????? | | ????????????????????? #?????????????????????? | | ?????????????????????? #?????????????????????? | | ??????????????????????? ##########??#?????????? | | ?????????????????#????## u# # ###?????#????? | | ???????????????????????# #; ;;;#??????????? | | ???????????????????????# ; ;##?????????? | | ???????????????????????# ; ; #?#???????? | | ????????????????????#??# @ ; ;##???????#?? | | ???????????????????????# ; ; #?????????? | | ????????????????????#??# ; ; #??##??##?? | | ???????????????????????# ;gs ; #?????????? | | ???????????????????????# [%! ! ;##??????#?#? | | ???????????????????????# ;=g ;#######????? | | ?????????????????? ????# #;;;%gg;;#### #??##?# | | ???????????????????????# ga=* + #???#?? | | ???????????????????????#k [ ### #?????? | | ???????????????????????# ### ##????? | | ???????????????????????# ######### #?# ####### | | ????????????????????? #?????#?# #?# ## | | ???????????????????? #?? ??### #?# ## "" | | ??????????????????? ??"?"?# ##+### """ | | ?????????????????? ??????# # """ | | ??????????????????? ??"???+ T + """ | | ??????????????????? ??????# # "" | | ?????????????????????###?#????"??# ####*# | | ?????????????????????????????"???## #???#*# | | ??????????????????????????????????# #???# ###### | | ??????????????????????? ??????? ??# #???#*#????? | | ?????????????????????????????? ???# #???#*##???? | | ??????????????#??????????????? ???# #???# #????? | | ??????????????????? ???????######## #???#!#????? | | ???????????????????????????# # #####+####?? | +----------------------------------------------------+ Best States ------------- Heat Dissipation 28 Energy Generation 14 Energy Capacity 280 Matter Stores 300 Matter Capacity 300 Sight Range 16 Terrain Scan Range 16 Terrain Scan Density 10 Utility Shielding 33 Evasion (%) 42 Item Schematics ----------------- None Robot Schematics ------------------ None Fabricated ------------ Nothing Repaired ---------- Nothing Alien Tech Used ----------------- None Achievements -------------- Achiever Back For More Challenges ------------ None Game ------ Seed AIDS NIGGER PUSSY Manual? 1 Play Time 00:07:16 Cumulative 17.4 hours Start 2025.09.07 @ 06:44:22 End 2025.09.07 @ 06:49:28 Sessions 1 Manual Loads 0 Difficulty Rogue Special Mode None Game No. 50 Rogue 50 Adventurer 0 Explorer 0 Win Type - Total 0 Types 0/0/0/0/0/0/0/0/0/0 Lore% 16 Gallery% 22 Achievement% 25 Wizard Run 0 Options --------- Layout 2 ASCII 0 Keyboard 0 Movement Mouse Keybinds 0 Fullscreen 2 Font 24/Smallcaps Map View 50x44 Zoom Use 0% Tactical HUD 1 Map Filters NONE Filters NONE Steam 1 RUN: addb1c69-7689-4786-acdb-24d93db8a720